fUST/lending_fUST_20260103
["ID","MTS","AMOUNT","RATE_DAILY","PERIOD"]
[400339305,1767391832236,-883.0,0.00012732,2]
[400339306,1767391832246,-239.942,0.00012732,2]
[400339309,1767391832255,-416.0,0.00012732,2]
[400339310,1767391832265,-309.82627622,0.00012942,2]
[400339312,1767391832275,-176.28797054,0.00012967,2]
[400339315,1767391832285,-255183.91163964,0.00012967,2]
[400339318,1767391832296,-9707.07858831,0.00012967,2]
[400339388,1767391838465,-4247.00643768,0.00012942,2]
[400339390,1767391838478,-776.68808795,0.00012942,2]
[400339392,1767391838493,-386.51,0.00012942,2]
[400339396,1767391838585,-2888.0872181,0.00012942,2]
[400339397,1767391838598,-2802.31422335,0.00012942,2]
[400339398,1767391838607,-500.0,0.00012966,2]
[400339399,1767391838617,-500.0,0.00012966,2]
[400339400,1767391838627,-171.96960893,0.00012966,2]
[400339401,1767391838637,-500.0,0.00012966,2]
[400339402,1767391838646,-500.0,0.00012966,2]
[400339403,1767391838656,-500.0,0.00012966,2]
[400339404,1767391838667,-27.82830062,0.00012966,2]
[400339405,1767391838683,-210.7670372,0.00012966,2]
[400339406,1767391838693,-500.0,0.00012966,2]
[400339407,1767391838702,-500.0,0.00012966,2]
[400339408,1767391838712,-500.0,0.00012966,2]
[400339409,1767391838723,-418.369372,0.00012966,2]
[400339410,1767391838733,-500.0,0.00012966,2]
[400339411,1767391838742,-500.0,0.00012966,2]
[400339412,1767391838751,-500.0,0.00012966,2]
[400339413,1767391838761,-500.0,0.00012966,2]
[400339414,1767391838770,-160.25986846,0.00012966,2]
[400339415,1767391838780,-300.20338801,0.00012966,2]
[400339416,1767391838790,-500.0,0.00012966,2]
[400339417,1767391838799,-278.9547331,0.00012966,2]
[400339418,1767391838813,-221.0452669,0.00012966,2]
[400339419,1767391838822,-500.0,0.00012966,2]
[400339420,1767391838831,-500.0,0.00012966,2]
[400339421,1767391838841,-500.0,0.00012966,2]
[400339422,1767391838850,-414.15616905,0.00012966,2]
[400339423,1767391838860,-500.0,0.00012966,2]
[400339424,1767391838870,-500.0,0.00012966,2]
[400339425,1767391838879,-500.0,0.00012966,2]
[400339426,1767391838889,-500.0,0.00012966,2]
[400339427,1767391838899,-500.0,0.00012966,2]
[400339428,1767391838908,-500.0,0.00012966,2]
[400339429,1767391838917,-500.0,0.00012966,2]
[400339430,1767391838926,-500.0,0.00012966,2]
[400339431,1767391838936,-500.0,0.00012966,2]
[400339432,1767391838946,-500.0,0.00012966,2]
[400339433,1767391838955,-500.0,0.00012966,2]
[400339434,1767391838964,-404.24281571,0.00012966,2]
[400339435,1767391838974,-500.0,0.00012966,2]
[400339436,1767391838983,-500.0,0.00012966,2]
[400339437,1767391838993,-500.0,0.00012966,2]
[400339438,1767391839002,-500.0,0.00012966,2]
[400339439,1767391839013,-500.0,0.00012966,2]
[400339440,1767391839023,-500.0,0.00012966,2]
[400339441,1767391839033,-500.0,0.00012966,2]
[400339442,1767391839042,-274.12908768,0.00012966,2]
[400339443,1767391839051,-500.0,0.00012966,2]
[400339444,1767391839061,-500.0,0.00012966,2]
[400339445,1767391839070,-500.0,0.00012966,2]
[400339446,1767391839079,-312.62231838,0.00012966,2]
[400339447,1767391839089,-500.0,0.00012966,2]
[400339448,1767391839098,-500.0,0.00012966,2]
[400339449,1767391839107,-500.0,0.00012966,2]
[400339450,1767391839117,-500.0,0.00012966,2]
[400339451,1767391839127,-500.0,0.00012966,2]
[400339452,1767391839137,-500.0,0.00012966,2]
[400339453,1767391839147,-500.0,0.00012966,2]
[400339454,1767391839157,-500.0,0.00012966,2]
[400339455,1767391839166,-500.0,0.00012966,2]
[400339456,1767391839177,-500.0,0.00012966,2]
[400339457,1767391839187,-500.0,0.00012966,2]
[400339458,1767391839197,-157.32457612,0.00012966,2]
[400339495,1767391840536,-342.67542388,0.00012966,2]
[400339497,1767391840546,-500.0,0.00012966,2]
[400339499,1767391840556,-500.0,0.00012966,2]
[400339501,1767391840565,-500.0,0.00012966,2]
[400339503,1767391840575,-500.0,0.00012966,2]
[400339505,1767391840584,-500.0,0.00012966,2]
[400339508,1767391840594,-500.0,0.00012966,2]
[400339509,1767391840603,-500.0,0.00012966,2]
[400339511,1767391840613,-500.0,0.00012966,2]
[400339512,1767391840621,-500.0,0.00012966,2]
[400339514,1767391840632,-500.0,0.00012966,2]
[400339516,1767391840641,-500.0,0.00012966,2]
[400339518,1767391840650,-500.0,0.00012966,2]
[400339520,1767391840659,-500.0,0.00012966,2]
[400339522,1767391840668,-500.0,0.00012966,2]
[400339524,1767391840677,-1480.45141022,0.00012967,2]
[400340049,1767393033094,-967.1592,0.00010592,2]
[400340050,1767393033105,-292.109,0.00010592,2]
[400340051,1767393033116,-3740.7318,0.00010592,2]
[400340052,1767393033125,-569.0,0.00010592,2]
[400340053,1767393033134,-424.24105493,0.00010618,2]
[400340054,1767393033144,-280.12411039,0.00010715,2]
[400340055,1767393033153,-430.7,0.00011264,2]
[400340056,1767393033163,-1041.66666667,0.00011876,2]
[400340057,1767393033172,-861.39,0.00012288,2]
[400340058,1767393033181,-300.0,0.00012499,2]
[400340059,1767393033190,-11641.31065195,0.000125,2]
[400340060,1767393033199,-250.0,0.00012506,2]
[400340061,1767393033208,-330.54645026,0.00012715,2]
[400340062,1767393033217,-741.57417574,0.00012758,2]
[400340063,1767393033226,-741.57417572,0.00012769,2]
[400340064,1767393033235,-741.57417572,0.00012779,2]
[400340065,1767393033244,-741.57417572,0.0001279,2]
[400340066,1767393033253,-741.57417572,0.000128,2]
[400340067,1767393033262,-186.52802129,0.00012805,2]
[400340068,1767393033271,-627.0,0.00012806,2]
[400340069,1767393033280,-1364.0,0.00012806,2]
[400340070,1767393033289,-2156.0,0.00012806,2]
[400340071,1767393033299,-416.0,0.00012806,2]
[400340072,1767393033308,-883.0,0.00012806,2]
[400340073,1767393033318,-239.942,0.00012806,2]
[400340074,1767393033327,-500.0,0.00012857,2]
[400340075,1767393033336,-500.0,0.00012857,2]
[400340076,1767393033345,-500.0,0.00012857,2]
[400340077,1767393033355,-500.0,0.00012857,2]
[400340078,1767393033364,-500.0,0.00012857,2]
[400340079,1767393033373,-264.80607701,0.00012857,2]
[400340080,1767393033382,-138.51400159,0.00012857,2]
[400340081,1767393037485,-292.66631769,0.00012857,2]
[400340090,1767393038369,-68.81968072,0.00012857,2]
[400340091,1767393038379,-500.0,0.00012857,2]
[400340092,1767393038388,-500.0,0.00012857,2]
[400340093,1767393038398,-500.0,0.00012857,2]
[400340094,1767393038407,-500.0,0.00012857,2]
[400340095,1767393038417,-500.0,0.00012857,2]
[400340096,1767393038427,-500.0,0.00012857,2]
[400340097,1767393038436,-500.0,0.00012857,2]
[400340098,1767393038446,-500.0,0.00012857,2]
[400340099,1767393038455,-500.0,0.00012857,2]
[400340100,1767393038465,-500.0,0.00012857,2]
[400340101,1767393038475,-500.0,0.00012857,2]
[400340102,1767393038486,-500.0,0.00012857,2]
[400340103,1767393038612,-500.0,0.00012857,2]
[400340104,1767393038622,-500.0,0.00012857,2]
[400340105,1767393038632,-500.0,0.00012857,2]
[400340106,1767393038642,-530.64383784,0.00012857,2]
[400340107,1767393038652,-500.0,0.00012857,2]
[400340108,1767393038662,-500.0,0.00012857,2]
[400340109,1767393038672,-488.52716404,0.00012857,2]
[400340110,1767393038681,-500.0,0.00012857,2]
[400340111,1767393038691,-500.0,0.00012857,2]
[400340112,1767393038700,-415.08235992,0.00012857,2]
[400340113,1767393038710,-500.0,0.00012857,2]
[400340114,1767393038720,-500.0,0.00012857,2]
[400340115,1767393038729,-500.0,0.00012857,2]
[400340116,1767393038742,-246.84512181,0.00012857,2]
[400340117,1767393038752,-500.0,0.00012857,2]
[400340118,1767393038761,-571.71973489,0.00012857,2]
[400340119,1767393038771,-500.0,0.00012857,2]
[400340120,1767393038780,-500.0,0.00012857,2]
[400340121,1767393038790,-500.0,0.00012857,2]
[400340122,1767393038799,-500.0,0.00012857,2]
[400340123,1767393038808,-500.0,0.00012857,2]
[400340124,1767393038818,-500.0,0.00012857,2]
[400340125,1767393038827,-500.0,0.00012857,2]
[400340126,1767393038836,-500.0,0.00012857,2]
[400340127,1767393038845,-500.0,0.00012857,2]
[400340128,1767393038855,-500.0,0.00012857,2]
[400340129,1767393038866,-500.0,0.00012857,2]
[400340130,1767393038876,-500.0,0.00012857,2]
[400340131,1767393038886,-640.22224098,0.00012857,2]
[400340132,1767393038896,-500.0,0.00012857,2]
[400340133,1767393038906,-500.0,0.00012857,2]
[400340134,1767393038916,-500.0,0.00012857,2]
[400340135,1767393038927,-500.0,0.00012857,2]
[400340136,1767393038937,-500.0,0.00012857,2]
[400340137,1767393038947,-341269.33969533,0.0001286,2]
[400340138,1767393038959,-17630.84868135,0.0001286,2]
[400340139,1767393038971,-2000.0,0.0001286,2]
[400340140,1767393038982,-2350.80566014,0.0001286,2]
[400340141,1767393038994,-1783.74258787,0.0001286,2]
[400340166,1767393040680,-721.77980252,0.0001286,2]
[400340167,1767393040692,-22160.93560096,0.0001286,2]
[400340168,1767393040715,-4532.83612995,0.0001286,2]
[400340169,1767393040726,-1554.47805157,0.0001286,2]
[400340560,1767393045300,-430.7,0.00011059,2]
[400340562,1767393045310,-861.39,0.00012064,2]
[400340564,1767393045319,-30559.68130136,0.0001286,2]
[400340719,1767393046797,-4474.10388076,0.0001286,2]
[400340916,1767393511796,259.50283472,0.00023802,120]
[400340918,1767393524217,170.822434,5.663e-05,2]
[400340931,1767393619474,1275.0,0.00023064,120]
[400340932,1767393620748,1275.0,0.00024217,120]
[400340933,1767393622007,1275.0,0.00025428,120]
[400340934,1767393623534,1275.0,0.000267,120]
[400340935,1767393624815,1275.0,0.00028035,120]
[400340946,1767393852791,5000.0,0.00012,10]
[400340947,1767393908728,382.0,0.00025931,120]
[400340948,1767393909952,382.0,0.00027228,120]
[400340949,1767393911199,382.0,0.00028589,120]
[400340951,1767394077714,5000.0,0.00012,10]
[400340959,1767394210840,229.0,0.00026206,120]
[400340960,1767394212282,229.0,0.00027516,120]
[400341005,1767394232630,-1480.000025,0.00010473,2]
[400341007,1767394232641,-1376.70538819,0.00010473,2]
[400341160,1767394240800,-2143.29458681,0.00010473,2]
[400341162,1767394240810,-567.0,0.00010473,2]
[400341164,1767394240820,-267.91069918,0.00010526,2]
[400341166,1767394240830,-207.40268338,0.00010848,2]
[400341168,1767394240839,-300.0,0.00011032,2]
[400341170,1767394240849,-300.0,0.00011032,2]
[400341172,1767394240858,-23298.39203063,0.00011033,2]
[400341175,1767394240870,-11615.92344147,0.00011033,2]
[400341177,1767394240879,-399.72,0.00011098,2]
[400341179,1767394240888,-170.822434,0.00011327,2]
[400341181,1767394240897,-1041.66666667,0.00011887,2]
[400341183,1767394240907,-799.43,0.00012106,2]
[400341185,1767394240916,-420.0,0.00012123,2]
[400341186,1767394240925,-217.38,0.00012329,2]
[400341188,1767394240934,-479.75,0.00012329,2]
[400341190,1767394240943,-399.79,0.00012329,2]
[400341192,1767394240953,-333.16,0.00012329,2]
[400341194,1767394240962,-277.63,0.00012329,2]
[400341196,1767394240971,-231.36,0.00012329,2]
[400341198,1767394240983,-192.8,0.00012329,2]
[400341200,1767394240998,-160.67,0.00012329,2]
[400341201,1767394241007,-803.37,0.00012329,2]
[400341203,1767394241017,-316.13462503,0.00012526,2]
[400341205,1767394241031,-285.74663721,0.00012757,2]
[400341206,1767394241043,-500.0,0.00012758,2]
[400341208,1767394241053,-500.0,0.00012758,2]
[400341210,1767394241062,-500.0,0.00012758,2]
[400341212,1767394241072,-500.0,0.00012758,2]
[400341214,1767394241081,-500.0,0.00012758,2]
[400341216,1767394241090,-500.0,0.00012758,2]
[400341218,1767394241100,-500.0,0.00012758,2]
[400341219,1767394241109,-500.0,0.00012758,2]
[400341221,1767394241119,-500.0,0.00012758,2]
[400341223,1767394241127,-500.0,0.00012758,2]
[400341225,1767394241137,-500.0,0.00012758,2]
[400341227,1767394241146,-500.0,0.00012758,2]
[400341229,1767394241155,-500.0,0.00012758,2]
[400341231,1767394241164,-500.0,0.00012758,2]
[400341233,1767394241173,-500.0,0.00012758,2]
[400341235,1767394241183,-500.0,0.00012758,2]
[400341237,1767394241192,-500.0,0.00012758,2]
[400341239,1767394241201,-500.0,0.00012758,2]
[400341241,1767394241210,-500.0,0.00012758,2]
[400341243,1767394241220,-500.0,0.00012758,2]
[400341245,1767394241229,-500.0,0.00012758,2]
[400341247,1767394241238,-500.0,0.00012758,2]
[400341249,1767394241247,-500.0,0.00012758,2]
[400341251,1767394241257,-500.0,0.00012758,2]
[400341253,1767394241266,-500.0,0.00012758,2]
[400341255,1767394241275,-500.0,0.00012758,2]
[400341257,1767394241284,-500.0,0.00012758,2]
[400341259,1767394241293,-500.0,0.00012758,2]
[400341261,1767394241302,-538.6701586,0.00012758,2]
[400341263,1767394241313,-538.6701586,0.00012758,2]
[400341265,1767394241322,-538.6701586,0.00012758,2]
[400341267,1767394241331,-538.6701586,0.00012758,2]
[400341269,1767394241340,-538.6701586,0.00012758,2]
[400341271,1767394241354,-538.6701586,0.00012758,2]
[400341273,1767394241362,-500.0,0.00012758,2]
[400341275,1767394241372,-500.0,0.00012758,2]
[400341277,1767394241381,-500.0,0.00012758,2]
[400341279,1767394241391,-500.0,0.00012758,2]
[400341281,1767394241400,-500.0,0.00012758,2]
[400341283,1767394241410,-585.36425391,0.00012758,2]
[400341285,1767394241421,-500.0,0.00012758,2]
[400341287,1767394241433,-500.0,0.00012758,2]
[400341289,1767394241442,-500.0,0.00012758,2]
[400341291,1767394241451,-500.0,0.00012758,2]
[400341293,1767394241460,-500.0,0.00012758,2]
[400341295,1767394241469,-500.0,0.00012758,2]
[400341297,1767394241478,-500.0,0.00012758,2]
[400341299,1767394241489,-500.0,0.00012758,2]
[400341301,1767394241497,-500.0,0.00012758,2]
[400341303,1767394241507,-500.0,0.00012758,2]
[400341305,1767394241516,-532.85756812,0.00012758,2]
[400341307,1767394241525,-194.09390242,0.00012759,2]
[400341309,1767394241534,-808.56354404,0.00012759,2]
[400341311,1767394241543,-808.56354404,0.00012759,2]
[400341313,1767394241553,-267.650596,0.00012759,2]
[400341659,1767394245204,-533.64496113,0.00012759,2]
[400341660,1767394245214,-801.29555713,0.00012759,2]
[400341661,1767394245224,-803.26256173,0.00012759,2]
[400341662,1767394245233,-803.26256173,0.00012759,2]
[400341663,1767394245242,-805.17509164,0.00012759,2]
[400341664,1767394245252,-806.81162637,0.00012759,2]
[400341665,1767394245261,-806.81162637,0.00012759,2]
[400341666,1767394245270,-799.63996747,0.00012759,2]
[400341667,1767394245279,-799.63996747,0.00012759,2]
[400341668,1767394245288,-801.69032636,0.00012759,2]
[400341669,1767394245298,-801.69032636,0.00012759,2]
[400341670,1767394245307,-804.09539734,0.00012759,2]
[400341671,1767394245316,-804.09539734,0.00012759,2]
[400341672,1767394245325,-806.29839843,0.00012759,2]
[400341673,1767394245334,-80.61311602,0.00012759,2]
[400341690,1767394246786,-725.68528241,0.00012759,2]
[400341691,1767394246796,-774.31471759,0.00012759,2]
[400341692,1767394246811,-23.02480975,0.00012759,2]
[400341693,1767394246821,-797.33952734,0.00012759,2]
[400341694,1767394246831,-797.33952734,0.00012759,2]
[400341695,1767394246841,-797.33952734,0.00012759,2]
[400341696,1767394246851,-797.33952734,0.00012759,2]
[400341697,1767394246861,-797.33952734,0.00012759,2]
[400341698,1767394246871,-797.33952734,0.00012759,2]
[400341699,1767394246880,-797.33952734,0.00012759,2]
[400341700,1767394246890,-797.33952734,0.00012759,2]
[400341701,1767394246900,-797.33952734,0.00012759,2]
[400341702,1767394246909,-797.33952734,0.00012759,2]
[400341703,1767394246920,-797.33952734,0.00012759,2]
[400341704,1767394246929,-797.33952734,0.00012759,2]
[400341705,1767394246938,-797.33952734,0.00012759,2]
[400341706,1767394246948,-797.33952734,0.00012759,2]
[400341707,1767394246957,-797.33952734,0.00012759,2]
[400341708,1767394246966,-797.33952734,0.00012759,2]
[400341709,1767394246978,-797.33952734,0.00012759,2]
[400341710,1767394246988,-797.33952734,0.00012759,2]
[400341711,1767394246998,-797.33952734,0.00012759,2]
[400341712,1767394247007,-797.33952734,0.00012759,2]
[400341713,1767394247016,-797.33952734,0.00012759,2]
[400341714,1767394247025,-797.33952734,0.00012759,2]
[400341715,1767394247035,-797.33952734,0.00012759,2]
[400341716,1767394247045,-797.33952734,0.00012759,2]
[400341717,1767394247055,-797.33952734,0.00012759,2]
[400341718,1767394247065,-197.70220675,0.00012759,2]
[400341839,1767394630237,154.25711837,0.00023929,120]
[400341840,1767394658673,5000.0,0.00012,10]
[400341841,1767394681652,276.01566319,0.00012,10]
[400341848,1767394814746,454.0,0.00024408,120]
[400341849,1767394816011,454.0,0.00025628,120]
[400341850,1767394817278,454.0,0.00026909,120]
[400341851,1767394818529,454.0,0.00028255,120]
[400341859,1767394881945,5000.0,0.00011,10]
[400341860,1767394904991,5000.0,0.00011,10]
[400341864,1767395108177,182.0,0.00026637,120]
[400341865,1767395109452,182.0,0.00027968,120]
[400341870,1767395328653,1498.13701251,0.00011,10]
[400341871,1767395410107,182.0,0.00026826,120]
[400341872,1767395411382,182.0,0.00028167,120]
[400341909,1767395431922,-250.82092968,0.00010935,2]
[400341912,1767395431934,-1050.39665032,0.00010935,2]
[400341914,1767395431944,-263.8497927,0.00010964,2]
[400341918,1767395431954,-437.0,0.00011001,2]
[400341920,1767395431964,-6698.8574038,0.00011002,2]
[400341922,1767395431974,-397.38,0.00011096,2]
[400341924,1767395431983,-235.0,0.00011268,2]
[400341925,1767395431993,-300.0,0.00011268,2]
[400341926,1767395432003,-300.0,0.00011268,2]
[400341927,1767395432014,-300.0,0.00011269,2]
[400341929,1767395432024,-300.0,0.00011269,2]
[400341931,1767395432033,-300.0,0.00011269,2]
[400341933,1767395432043,-300.0,0.00011269,2]
[400341935,1767395432053,-300.0,0.00011269,2]
[400341937,1767395432062,-300.0,0.00011269,2]
[400341939,1767395432072,-300.0,0.00011269,2]
[400341941,1767395432082,-300.0,0.00011269,2]
[400341943,1767395432092,-300.0,0.00011269,2]
[400341945,1767395432102,-300.0,0.00011269,2]
[400341947,1767395432112,-300.0,0.00011269,2]
[400341949,1767395432121,-300.0,0.00011269,2]
[400341951,1767395432131,-300.0,0.00011269,2]
[400341953,1767395432142,-300.0,0.00011269,2]
[400341955,1767395432152,-300.0,0.00011269,2]
[400341957,1767395432162,-600.0,0.00011493,2]
[400341959,1767395432172,-169.59697142,0.00011702,2]
[400341961,1767395432181,-305.27454855,0.00011702,2]
[400341963,1767395432191,-542.71030854,0.00011702,2]
[400341965,1767395432200,-847.13687223,0.00011702,2]
[400341967,1767395432210,-794.76,0.00012104,2]
[400341969,1767395432220,-1041.66666667,0.00012112,2]
[400341971,1767395432230,-2388.81745481,0.00012218,2]
[400341973,1767395432240,-15806.67246081,0.00012227,2]
[400341977,1767395432268,-1740.42697196,0.00012227,2]
[400341979,1767395432278,-500.0,0.00012228,2]
[400341981,1767395432287,-500.0,0.00012228,2]
[400341983,1767395432297,-635.88782456,0.00012228,2]
[400341985,1767395432307,-6267.99564097,0.00012229,2]
[400342508,1767395437728,-156179.58542819,0.00012229,2]
[400342515,1767395437790,-88445.08181013,0.00012229,2]
[400342518,1767395437820,-644727.02141217,0.00012229,2]
[400342520,1767395437834,-2648.75867711,0.00012229,2]
[400342573,1767395445854,-382.21,0.00011067,2]
[400342574,1767395445864,-525.97272636,0.00012073,2]
[400342584,1767395706259,182.0,0.0002699,120]
[400342585,1767395707431,182.0,0.0002834,120]
[400342587,1767395840842,1941.51943082,0.00011,10]
[400342588,1767395849476,5000.0,0.00011,10]
[400342589,1767395866140,201.16,0.0001,2]
[400342593,1767395962547,1008.57435096,0.0001,2]
[400342595,1767396050582,221.61,0.0001,2]
[400342606,1767396230030,180.26,0.0001,2]
[400342607,1767396277486,217.57321504,0.0001,2]
[400342678,1767396478276,5000.0,9.757e-05,2]
[400342683,1767396500921,5000.0,9.757e-05,2]
[400342686,1767396512781,1742.3805756,9.628e-05,2]
[400342688,1767396523496,5000.0,9.757e-05,2]
[400342690,1767396546166,5000.0,9.757e-05,2]
[400342691,1767396555050,176.0,7.9e-07,2]
[400342692,1767396556169,176.0,7.9e-07,2]
[400342693,1767396557187,176.0,7.9e-07,2]
[400342694,1767396568750,4782.42678496,9.757e-05,2]
[400342724,1767396631869,-5000.0,9.9e-05,2]
[400342725,1767396631879,-150.25,0.0001,2]
[400342727,1767396631889,-278.13279684,0.000101,2]
[400342728,1767396631898,-150.25,0.000102,2]
[400342730,1767396631909,-150.25,0.000104,2]
[400342731,1767396631919,-635.7906503,0.00010542,2]
[400342732,1767396631929,-150.25,0.000106,2]
[400342733,1767396631938,-300.0,0.00010799,2]
[400342735,1767396631948,-178.0,0.00010799,2]
[400342737,1767396631957,-38653.07792635,0.000108,2]
[400342739,1767396631967,-150.25,0.000108,2]
[400342740,1767396631978,-150.25,0.00011,2]
[400342741,1767396631989,-388.27,0.00011207,2]
[400342742,1767396631999,-345.88012237,0.00011603,2]
[400342743,1767396632009,-395.29156842,0.00011603,2]
[400342744,1767396632019,-617.02543258,0.00011603,2]
[400342745,1767396632029,-161.637,0.00011884,2]
[400342746,1767396632039,-1632.04594442,0.00012039,2]
[400342747,1767396632049,-328.19670027,0.000121,2]
[400342748,1767396632060,-8684.1493241,0.00012126,2]
[400342749,1767396632072,-1044.75855287,0.00012126,2]
[400342750,1767396632083,-294.49516258,0.00012126,2]
[400342763,1767396637989,-2183.5512196,0.00012126,2]
[400342764,1767396638001,-2431.7092686,0.00012126,2]
[400342765,1767396638013,-1875.99814018,0.00012126,2]
[400342766,1767396638026,-1231.33063298,0.00012126,2]
[400342779,1767396640359,-3085.5691881,0.00012126,2]
[400342780,1767396640370,-1314.14720954,0.00012127,2]
[400342781,1767396640382,-36880.56421326,0.00012127,2]
[400342783,1767396640394,-41538.10619099,0.00012127,2]
[400342791,1767396646062,-2455.38369134,0.00012127,2]
[400342793,1767396646143,-2080.75000043,0.00012127,2]
[400342891,1767397652697,5000.0,9.757e-05,2]
[400342892,1767397661500,5000.0,9.757e-05,2]
[400342893,1767397677177,1455.51539079,9.757e-05,2]
[400342894,1767397685011,5000.0,9.757e-05,2]
[400342895,1767397708742,5000.0,9.757e-05,2]
[400342903,1767397731608,5000.0,9.757e-05,2]
[400342905,1767397754431,5000.0,9.757e-05,2]
[400342906,1767397777943,5000.0,9.757e-05,2]
[400342907,1767397800703,5000.0,9.757e-05,2]
[400342910,1767397824638,5000.0,9.757e-05,2]
[400342923,1767397832070,-392.03724538,9.949e-05,2]
[400342924,1767397832084,-34.94892108,9.949e-05,2]
[400342925,1767397832094,-559.0,9.949e-05,2]
[400342926,1767397832105,-269.0062069,0.00010043,2]
[400342927,1767397832114,-250.0,0.00010924,2]
[400342928,1767397832124,-383.33,0.00011097,2]
[400342929,1767397832134,-300.0,0.00012024,2]
[400342930,1767397832144,-300.0,0.00012024,2]
[400342931,1767397832154,-300.0,0.00012024,2]
[400342932,1767397832163,-500.0,0.00012025,2]
[400342933,1767397832173,-500.0,0.00012025,2]
[400342934,1767397832183,-500.0,0.00012025,2]
[400342935,1767397832193,-451.27182195,0.00012025,2]
[400342936,1767397832203,-500.0,0.00012025,2]
[400342937,1767397832212,-500.0,0.00012025,2]
[400342938,1767397832222,-500.0,0.00012025,2]
[400342939,1767397832232,-500.0,0.00012025,2]
[400342940,1767397832242,-500.0,0.00012025,2]
[400342941,1767397832252,-500.0,0.00012025,2]
[400342942,1767397832262,-500.0,0.00012025,2]
[400342943,1767397832272,-650.0,0.00012025,2]
[400342944,1767397832282,-500.0,0.00012025,2]
[400342945,1767397832293,-500.0,0.00012025,2]
[400342946,1767397832306,-500.0,0.00012025,2]
[400342947,1767397832319,-500.0,0.00012025,2]
[400342948,1767397832329,-500.0,0.00012025,2]
[400342949,1767397832339,-500.0,0.00012025,2]
[400342950,1767397832350,-500.0,0.00012025,2]
[400342951,1767397832360,-500.0,0.00012025,2]
[400342952,1767397832370,-500.0,0.00012025,2]
[400342953,1767397832387,-500.0,0.00012025,2]
[400342954,1767397832397,-500.0,0.00012025,2]
[400342955,1767397832407,-500.0,0.00012025,2]
[400342956,1767397832417,-500.0,0.00012025,2]
[400342957,1767397832427,-500.0,0.00012025,2]
[400342958,1767397832597,-500.0,0.00012025,2]
[400342959,1767397832608,-500.0,0.00012025,2]
[400342960,1767397832618,-500.0,0.00012025,2]
[400342961,1767397832628,-500.0,0.00012025,2]
[400342962,1767397832637,-435.0,0.00012025,2]
[400342963,1767397832646,-500.0,0.00012025,2]
[400342964,1767397832658,-500.0,0.00012025,2]
[400342965,1767397832668,-500.0,0.00012025,2]
[400342966,1767397832678,-500.0,0.00012025,2]
[400342967,1767397832688,-500.0,0.00012025,2]
[400342968,1767397832698,-500.0,0.00012025,2]
[400342969,1767397832708,-500.0,0.00012025,2]
[400342970,1767397832718,-500.0,0.00012025,2]
[400342971,1767397832727,-500.0,0.00012025,2]
[400342972,1767397832737,-500.0,0.00012025,2]
[400342973,1767397832747,-500.0,0.00012025,2]
[400342974,1767397832757,-500.0,0.00012025,2]
[400342975,1767397832767,-500.0,0.00012025,2]
[400342976,1767397832776,-500.0,0.00012025,2]
[400342977,1767397832786,-500.0,0.00012025,2]
[400342978,1767397832796,-500.0,0.00012025,2]
[400342979,1767397832806,-500.0,0.00012025,2]
[400342980,1767397832816,-500.0,0.00012025,2]
[400342981,1767397832826,-500.0,0.00012025,2]
[400342982,1767397832840,-500.0,0.00012025,2]
[400342983,1767397832850,-523.27947656,0.00012025,2]